[Event "FIDE U16 Olympiad_boards_1-80"]
[Site "Eindhoven, Netherlands"]
[Date "2023.08.14"]
[Round "2.8"]
[White "Lu, Miaoyi"]
[Black "Rappazzo, Johannes"]
[Result "1-0"]
[TimeControl "2700+10"]
[WhiteElo "2170"]
[BlackElo "1776"]

1. e4 {[%clk 00:45:19]} c5 {[%clk 00:45:18]} {[%emt 00:00:02]} 2. Nf3 {[%clk
00:45:28]} {[%emt 00:00:01]} d6 {[%clk 00:45:26]} {[%emt 00:00:02]} 3. d4
{[%clk 00:45:37]} {[%emt 00:00:02]} cxd4 {[%clk 00:45:34]} {[%emt 00:00:02]} 4.
Nxd4 {[%clk 00:45:46]} Nf6 {[%clk 00:45:43]} {[%emt 00:00:02]} 5. Nc3 {[%clk
00:45:55]} {[%emt 00:00:01]} a6 {[%clk 00:45:52]} 6. a4 {[%clk 00:46:04]}
{[%emt 00:00:01]} e5 {[%clk 00:44:13]} {[%emt 00:01:49]} 7. Nf3 {[%clk
00:46:13]} {[%emt 00:00:01]} Be7 {[%clk 00:44:00]} {[%emt 00:00:23]} 8. Bg5
{[%clk 00:46:21]} {[%emt 00:00:02]} Be6 {[%clk 00:39:52]} {[%emt 00:04:18]} 9.
Bxf6 {[%clk 00:46:29]} {[%emt 00:00:02]} Bxf6 {[%clk 00:39:55]} {[%emt
00:00:07]} 10. Nd5 {[%clk 00:46:38]} {[%emt 00:00:01]} Nd7 {[%clk 00:38:24]}
{[%emt 00:01:41]} 11. Bc4 {[%clk 00:46:47]} {[%emt 00:00:02]} Rc8 {[%clk
00:35:59]} {[%emt 00:02:35]} 12. b3 {[%clk 00:46:55]} {[%emt 00:00:02]} Nb6
{[%clk 00:27:40]} {[%emt 00:08:29]} 13. Nxf6+ {[%clk 00:47:02]} {[%emt
00:00:03]} Qxf6 {[%clk 00:27:46]} {[%emt 00:00:04]} 14. Bxe6 {[%clk 00:47:10]}
{[%emt 00:00:02]} Qxe6 {[%clk 00:27:38]} {[%emt 00:00:18]} 15. O-O {[%clk
00:47:19]} {[%emt 00:00:02]} O-O {[%clk 00:26:47]} {[%emt 00:01:02]} 16. Re1
{[%clk 00:47:28]} Rc3 {[%clk 00:21:33]} {[%emt 00:05:24]} 17. Nd2 {[%clk
00:47:33]} {[%emt 00:00:05]} Rfc8 {[%clk 00:20:22]} {[%emt 00:01:21]} 18. a5
{[%clk 00:47:41]} {[%emt 00:00:02]} Na8 {[%clk 00:06:42]} {[%emt 00:13:50]} 19.
Nc4 {[%clk 00:47:06]} {[%emt 00:00:46]} Nc7 {[%clk 00:05:43]} {[%emt 00:01:08]}
20. Qxd6 {[%clk 00:42:28]} {[%emt 00:04:48]} Rxc2 {[%clk 00:03:04]} {[%emt
00:02:49]} 21. Qd3 {[%clk 00:41:53]} {[%emt 00:00:45]} Rxc4 {[%clk 00:00:50]}
{[%emt 00:02:24]} 22. bxc4 {[%clk 00:39:06]} {[%emt 00:02:57]} Qe7 {[%clk
00:00:45]} {[%emt 00:00:15]} 23. Rab1 {[%clk 00:36:18]} {[%emt 00:02:58]} Ne6
{[%clk 00:00:48]} {[%emt 00:00:08]} 24. Qd5 {[%clk 00:36:10]} {[%emt 00:00:18]}
Rc7 {[%clk 00:00:21]} {[%emt 00:00:37]} 25. Qxe5 {[%clk 00:35:15]} {[%emt
00:01:05]} f6 {[%clk 00:00:23]} {[%emt 00:00:08]} 26. Qc3 {[%clk 00:33:20]}
{[%emt 00:02:04]} Qc5 {[%clk 00:00:16]} {[%emt 00:00:17]} 27. e5 {[%clk
00:32:13]} {[%emt 00:01:18]} Nd4 {[%clk 00:00:19]} {[%emt 00:00:06]} 28. exf6
{[%clk 00:30:17]} {[%emt 00:02:06]} gxf6 {[%clk 00:00:25]} {[%emt 00:00:04]} 29.
Rbd1 {[%clk 00:29:49]} {[%emt 00:00:38]} Rd7 {[%clk 00:00:26]} {[%emt
00:00:09]} 30. Qe3 {[%clk 00:26:46]} {[%emt 00:03:13]} 1-0

[Event "FIDE U16 Olympiad_boards_1-80"]
[Site "Eindhoven, Netherlands"]
[Date "2023.08.14"]
[Round "2.9"]
[White "Savicevs, Arsenijs"]
[Black "Han, Yichen"]
[Result "1-0"]
[TimeControl "2700+10"]
[WhiteElo "2136"]
[BlackElo "2398"]

1. e4 {[%clk 00:45:17]} {[%emt 00:00:03]} c6 {[%clk 00:45:19]} {[%emt
00:00:02]} 2. d4 {[%clk 00:45:25]} {[%emt 00:00:02]} d5 {[%clk 00:45:28]} 3. e5
{[%clk 00:45:33]} {[%emt 00:00:01]} Bf5 {[%clk 00:45:31]} {[%emt 00:00:07]} 4.
Nf3 {[%clk 00:45:41]} {[%emt 00:00:03]} e6 {[%clk 00:45:35]} {[%emt 00:00:06]}
5. Be2 {[%clk 00:45:48]} {[%emt 00:00:03]} c5 {[%clk 00:45:11]} {[%emt
00:00:34]} 6. c3 {[%clk 00:45:53]} {[%emt 00:00:05]} Nc6 {[%clk 00:45:10]}
{[%emt 00:00:11]} 7. O-O {[%clk 00:45:59]} {[%emt 00:00:04]} Qb6 {[%clk
00:44:49]} {[%emt 00:00:31]} 8. dxc5 {[%clk 00:45:47]} {[%emt 00:00:21]} Bxc5
{[%clk 00:44:17]} {[%emt 00:00:42]} 9. b4 {[%clk 00:45:55]} {[%emt 00:00:03]}
Be7 {[%clk 00:44:03]} {[%emt 00:00:24]} 10. Be3 {[%clk 00:46:00]} {[%emt
00:00:05]} Qc7 {[%clk 00:43:35]} {[%emt 00:00:38]} 11. b5 {[%clk 00:46:05]}
{[%emt 00:00:05]} Na5 {[%clk 00:43:01]} {[%emt 00:00:44]} 12. Qa4 {[%clk
00:46:11]} {[%emt 00:00:03]} b6 {[%clk 00:42:33]} {[%emt 00:00:39]} 13. c4
{[%clk 00:45:59]} {[%emt 00:00:22]} dxc4 {[%clk 00:40:02]} {[%emt 00:02:41]} 14.
Nbd2 {[%clk 00:42:38]} {[%emt 00:03:30]} Nh6 {[%clk 00:36:39]} {[%emt
00:03:33]} 15. Nxc4 {[%clk 00:41:39]} {[%emt 00:01:09]} Nxc4 {[%clk 00:36:44]}
{[%emt 00:00:06]} 16. Rac1 {[%emt 00:06:29]} Nb2 {[%clk 00:31:52]} 17. Qb3
{[%clk 00:40:02]} {[%emt 00:00:30]} Qb7 {[%clk 00:31:47]} {[%emt 00:00:15]} 18.
Qxb2 {[%emt 00:00:43]} O-O {[%clk 00:31:17]} 19. Nd2 {[%clk 00:37:48]} {[%emt
00:02:30]} Rad8 {[%clk 00:27:13]} {[%emt 00:04:14]} 20. Bf3 {[%clk 00:37:16]}
{[%emt 00:00:42]} Qb8 {[%clk 00:25:25]} {[%emt 00:01:58]} 21. Ne4 {[%clk
00:30:08]} {[%emt 00:07:18]} Bg6 {[%clk 00:19:15]} {[%emt 00:06:20]} 22. Nf6+
{[%clk 00:23:32]} {[%emt 00:06:46]} Kh8 {[%clk 00:18:23]} {[%emt 00:01:01]} 23.
Bc6 {[%clk 00:22:37]} {[%emt 00:01:05]} gxf6 {[%clk 00:12:40]} {[%emt
00:05:54]} 24. Bxh6 {[%clk 00:22:05]} {[%emt 00:00:42]} Rg8 {[%clk 00:12:06]}
{[%emt 00:00:44]} 25. exf6 {[%clk 00:21:51]} {[%emt 00:00:24]} Bf8 {[%clk
00:12:15]} 26. Bg7+ {[%clk 00:20:25]} {[%emt 00:01:35]} Bxg7 {[%clk 00:11:46]}
{[%emt 00:00:40]} 27. fxg7+ {[%clk 00:20:33]} {[%emt 00:00:02]} Rxg7 {[%clk
00:11:55]} {[%emt 00:00:01]} 28. Rfd1 {[%clk 00:18:47]} {[%emt 00:01:56]} Rxd1+
{[%clk 00:06:50]} {[%emt 00:05:14]} 29. Rxd1 {[%clk 00:18:54]} {[%emt
00:00:04]} e5 {[%clk 00:06:56]} {[%emt 00:00:04]} 30. Rd5 {[%clk 00:15:43]}
{[%emt 00:03:21]} f6 {[%clk 00:04:33]} {[%emt 00:02:33]} 31. Qd2 {[%clk
00:15:47]} {[%emt 00:00:06]} Rg8 {[%clk 00:04:29]} {[%emt 00:00:14]} 32. Rd7
{[%clk 00:15:19]} {[%emt 00:00:38]} Bf5 {[%clk 00:01:29]} {[%emt 00:03:10]} 33.
Rf7 {[%clk 00:13:30]} {[%emt 00:01:58]} Rd8 {[%clk 00:01:01]} {[%emt 00:00:39]}
34. Qe2 {[%clk 00:12:26]} {[%emt 00:01:14]} Qd6 {[%clk 00:01:09]} {[%emt
00:00:03]} 35. h3 {[%clk 00:11:59]} {[%emt 00:00:36]} a6 {[%clk 00:00:15]}
{[%emt 00:01:04]} 36. Qf3 {[%clk 00:07:03]} {[%emt 00:05:05]} Qe6 {[%clk
00:00:24]} {[%emt 00:00:02]} 37. Ra7 {[%emt 00:02:07]} axb5 {[%clk 00:00:28]}
{[%emt 00:00:09]} 38. Be4 {[%clk 00:05:05]} {[%emt 00:00:08]} Bxe4 {[%clk
00:00:21]} {[%emt 00:00:18]} 39. Qxe4 {[%clk 00:05:11]} {[%emt 00:00:03]} Rd7
{[%clk 00:00:16]} {[%emt 00:00:15]} 40. Qa8+ {[%clk 00:05:15]} {[%emt
00:00:06]} Kg7 {[%clk 00:00:25]} {[%emt 00:00:02]} 41. Qc8 {[%clk 00:05:23]}
{[%emt 00:00:01]} Rxa7 {[%clk 00:00:16]} {[%emt 00:00:19]} 42. Qxe6 {[%clk
00:05:32]} b4 {[%clk 00:00:13]} {[%emt 00:00:14]} 43. Qg4+ {[%clk 00:05:20]}
{[%emt 00:00:21]} Kh6 {[%clk 00:00:14]} {[%emt 00:00:09]} 44. Qg8 {[%clk
00:04:23]} {[%emt 00:01:07]} Ra4 {[%clk 00:00:13]} {[%emt 00:00:11]} 45. Qf8+
{[%clk 00:04:22]} {[%emt 00:00:12]} Kg5 {[%clk 00:00:21]} {[%emt 00:00:02]} 46.
Qg7+ {[%clk 00:04:30]} Kh5 {[%clk 00:00:26]} {[%emt 00:00:04]} 47. Qxh7+ {[%clk
00:04:32]} {[%emt 00:00:08]} Kg5 {[%clk 00:00:36]} 48. h4+ {[%clk 00:04:20]}
{[%emt 00:00:23]} Kg4 {[%clk 00:00:23]} {[%emt 00:00:22]} 49. Qd7+ {[%clk
00:04:28]} {[%emt 00:00:03]} 1-0

[Event "FIDE U16 Olympiad_boards_1-80"]
[Site "Eindhoven, Netherlands"]
[Date "2023.08.14"]
[Round "2.10"]
[White "De Winter, Arthur"]
[Black "Adamovics, Aleksejs"]
[Result "1-0"]
[TimeControl "2700+10"]
[WhiteElo "2360"]
[BlackElo "2000"]

1. e4 {[%clk 00:45:17]} {[%emt 00:00:02]} c5 {[%clk 00:45:18]} {[%emt
00:00:03]} 2. Nf3 {[%clk 00:45:25]} {[%emt 00:00:02]} Nc6 {[%clk 00:45:25]}
{[%emt 00:00:02]} 3. d4 {[%clk 00:45:32]} {[%emt 00:00:03]} cxd4 {[%clk
00:45:33]} {[%emt 00:00:02]} 4. Nxd4 {[%clk 00:45:39]} {[%emt 00:00:03]} g6
{[%clk 00:45:39]} {[%emt 00:00:04]} 5. c4 {[%clk 00:45:47]} {[%emt 00:00:02]}
Nf6 {[%clk 00:45:47]} {[%emt 00:00:03]} 6. Nc3 {[%clk 00:45:54]} {[%emt
00:00:02]} d6 {[%clk 00:45:55]} {[%emt 00:00:02]} 7. f3 {[%clk 00:46:03]}
{[%emt 00:00:02]} Nxd4 {[%clk 00:45:53]} {[%emt 00:00:11]} 8. Qxd4 {[%clk
00:46:10]} {[%emt 00:00:03]} Bg7 {[%clk 00:46:01]} {[%emt 00:00:03]} 9. Be3
{[%clk 00:46:16]} {[%emt 00:00:03]} O-O {[%clk 00:45:42]} {[%emt 00:00:29]} 10.
Qd2 {[%clk 00:46:24]} {[%emt 00:00:03]} Be6 {[%clk 00:45:47]} {[%emt 00:00:04]}
11. Rc1 {[%clk 00:46:29]} {[%emt 00:00:04]} Qa5 {[%clk 00:44:53]} {[%emt
00:01:06]} 12. b3 {[%clk 00:46:34]} {[%emt 00:00:05]} Rac8 {[%clk 00:43:59]}
{[%emt 00:01:03]} 13. Bd3 {[%clk 00:45:31]} {[%emt 00:01:14]} Rfe8 {[%clk
00:42:09]} {[%emt 00:02:00]} 14. Nd5 {[%clk 00:38:28]} {[%emt 00:07:13]} Qxd2+
{[%clk 00:41:35]} {[%emt 00:00:43]} 15. Kxd2 {[%clk 00:38:35]} {[%emt
00:00:03]} Nxd5 {[%clk 00:40:53]} {[%emt 00:00:52]} 16. exd5 {[%clk 00:34:53]}
{[%emt 00:03:52]} Bd7 {[%clk 00:41:02]} {[%emt 00:00:01]} 17. h4 {[%clk
00:32:24]} {[%emt 00:02:40]} a6 {[%clk 00:37:48]} {[%emt 00:03:24]} 18. h5
{[%clk 00:30:40]} {[%emt 00:01:54]} b5 {[%clk 00:35:04]} {[%emt 00:02:53]} 19.
h6 {[%clk 00:25:52]} {[%emt 00:04:59]} Bh8 {[%clk 00:33:37]} {[%emt 00:01:36]}
20. b4 {[%clk 00:22:25]} {[%emt 00:03:37]} bxc4 {[%clk 00:26:18]} {[%emt
00:07:29]} 21. Rxc4 {[%clk 00:22:18]} {[%emt 00:00:17]} Rb8 {[%clk 00:24:16]}
{[%emt 00:02:13]} 22. Rc7 {[%clk 00:21:13]} {[%emt 00:01:15]} Red8 {[%clk
00:22:00]} {[%emt 00:02:25]} 23. Rb1 {[%clk 00:20:51]} {[%emt 00:00:32]} Bb5
{[%clk 00:19:47]} {[%emt 00:02:23]} 24. a4 {[%clk 00:19:44]} {[%emt 00:01:17]}
Bxa4 {[%clk 00:11:16]} {[%emt 00:08:41]} 25. Bxa6 {[%clk 00:19:51]} {[%emt
00:00:03]} Bb5 {[%clk 00:10:48]} {[%emt 00:00:38]} 26. Bb7 {[%clk 00:19:36]}
{[%emt 00:00:26]} Rd7 {[%clk 00:10:34]} {[%emt 00:00:23]} 27. Rxd7 {[%clk
00:19:09]} {[%emt 00:00:37]} Bxd7 {[%clk 00:10:43]} {[%emt 00:00:01]} 28. Bc6
{[%clk 00:19:16]} {[%emt 00:00:03]} Bf5 {[%clk 00:10:51]} {[%emt 00:00:02]} 29.
Rb3 {[%clk 00:19:17]} {[%emt 00:00:10]} e6 {[%clk 00:07:44]} {[%emt 00:03:17]}
30. g4 {[%clk 00:18:49]} {[%emt 00:00:37]} exd5 {[%clk 00:07:47]} {[%emt
00:00:07]} 31. gxf5 {[%clk 00:18:58]} {[%emt 00:00:01]} d4 {[%clk 00:07:56]} 32.
Bf4 {[%clk 00:18:59]} {[%emt 00:00:09]} gxf5 {[%clk 00:06:43]} {[%emt
00:01:23]} 33. Bxd6 {[%clk 00:18:59]} {[%emt 00:00:10]} Rd8 {[%clk 00:06:52]}
{[%emt 00:00:02]} 34. Bf4 {[%clk 00:18:41]} {[%emt 00:00:28]} d3 {[%clk
00:03:17]} {[%emt 00:03:45]} 35. Rxd3 {[%clk 00:18:38]} {[%emt 00:00:12]} Rc8
{[%clk 00:03:06]} {[%emt 00:00:21]} 36. b5 {[%clk 00:18:46]} {[%emt 00:00:02]}
Bf6 {[%clk 00:02:39]} {[%emt 00:00:37]} 37. Ra3 {[%clk 00:18:33]} {[%emt
00:00:24]} Rd8+ {[%clk 00:02:40]} {[%emt 00:00:08]} 38. Kc2 {[%clk 00:18:39]}
{[%emt 00:00:04]} Bd4 {[%clk 00:02:09]} {[%emt 00:00:41]} 39. Bc7 {[%clk
00:18:38]} {[%emt 00:00:11]} Rc8 {[%clk 00:00:49]} {[%emt 00:01:30]} 40. Ra8
{[%clk 00:18:47]} {[%emt 00:00:02]} Rxa8 {[%clk 00:00:56]} {[%emt 00:00:02]} 41.
Bxa8 {[%clk 00:18:55]} {[%emt 00:00:02]} f4 {[%clk 00:01:05]} {[%emt 00:00:01]}
42. b6 {[%clk 00:18:59]} {[%emt 00:00:07]} f5 {[%clk 00:01:07]} {[%emt
00:00:08]} 43. b7 {[%clk 00:19:03]} {[%emt 00:00:06]} Ba7 {[%clk 00:01:13]}
{[%emt 00:00:03]} 44. b8=Q+ {[%clk 00:19:10]} {[%emt 00:00:04]} Bxb8 {[%clk
00:01:21]} {[%emt 00:00:01]} 45. Bxb8 {[%clk 00:19:18]} {[%emt 00:00:02]} Kf7
{[%clk 00:01:31]} 46. Bxf4 {[%clk 00:19:25]} {[%emt 00:00:03]} Kg6 {[%clk
00:00:39]} {[%emt 00:01:01]} 47. Bd5 {[%clk 00:19:32]} {[%emt 00:00:03]} Kh5
{[%clk 00:00:43]} {[%emt 00:00:07]} 48. Bg8 {[%clk 00:19:39]} {[%emt 00:00:03]}
Kg6 {[%clk 00:00:17]} {[%emt 00:00:35]} 49. Kd3 {[%clk 00:19:47]} {[%emt
00:00:02]} Kf6 {[%clk 00:00:23]} {[%emt 00:00:04]} 50. Bxh7 {[%clk 00:19:55]}
{[%emt 00:00:02]} Kf7 {[%clk 00:00:31]} {[%emt 00:00:02]} 51. Bxf5 {[%clk
00:20:03]} {[%emt 00:00:02]} Kg8 {[%clk 00:00:11]} {[%emt 00:00:30]} 52. h7+
{[%clk 00:20:10]} {[%emt 00:00:03]} Kf7 {[%clk 00:00:20]} {[%emt 00:00:01]} 53.
h8=Q {[%clk 00:20:18]} {[%emt 00:00:02]} 1-0

[Event "FIDE U16 Olympiad_boards_1-80"]
[Site "Eindhoven, Netherlands"]
[Date "2023.08.14"]
[Round "2.11"]
[White "Vingris, Mikelis"]
[Black "Kumar, Prajit Sai"]
[Result "1/2-1/2"]
[TimeControl "2700+10"]
[WhiteElo "2031"]
[BlackElo "2160"]

1. e4 {[%clk 00:45:17]} {[%emt 00:00:03]} c5 {[%clk 00:45:18]} {[%emt
00:00:03]} 2. Nf3 {[%clk 00:45:24]} {[%emt 00:00:03]} Nc6 {[%clk 00:45:26]}
{[%emt 00:00:01]} 3. d4 {[%clk 00:45:31]} {[%emt 00:00:04]} cxd4 {[%clk
00:45:33]} {[%emt 00:00:02]} 4. Nxd4 {[%clk 00:45:39]} {[%emt 00:00:03]} Nf6
{[%clk 00:45:41]} {[%emt 00:00:02]} 5. Nc3 {[%clk 00:45:43]} {[%emt 00:00:06]}
d6 {[%clk 00:45:49]} {[%emt 00:00:02]} 6. Be2 {[%clk 00:45:18]} {[%emt
00:00:34]} e5 {[%clk 00:45:56]} {[%emt 00:00:03]} 7. Nf3 {[%clk 00:45:19]}
{[%emt 00:00:10]} h6 {[%clk 00:46:04]} {[%emt 00:00:02]} 8. O-O {[%clk
00:44:54]} {[%emt 00:00:34]} Be7 {[%clk 00:45:31]} {[%emt 00:00:43]} 9. h3
{[%clk 00:44:03]} {[%emt 00:01:02]} Be6 {[%clk 00:45:09]} {[%emt 00:00:31]} 10.
Re1 {[%clk 00:43:52]} {[%emt 00:00:21]} O-O {[%clk 00:44:50]} {[%emt 00:00:29]}
11. Bf1 {[%clk 00:43:51]} {[%emt 00:00:11]} Qa5 {[%clk 00:44:13]} {[%emt
00:00:48]} 12. Nd2 {[%clk 00:33:11]} {[%emt 00:10:50]} d5 {[%clk 00:40:56]}
{[%emt 00:03:27]} 13. exd5 {[%clk 00:30:26]} {[%emt 00:02:55]} Nxd5 {[%clk
00:40:27]} {[%emt 00:00:38]} 14. Nc4 {[%clk 00:29:08]} {[%emt 00:01:28]} Nxc3
{[%clk 00:39:58]} {[%emt 00:00:39]} 15. Nxa5 {[%clk 00:28:50]} {[%emt
00:00:28]} Nxd1 {[%clk 00:40:05]} {[%emt 00:00:03]} 16. Nxc6 {[%clk 00:28:51]}
{[%emt 00:00:10]} bxc6 {[%clk 00:39:49]} {[%emt 00:00:26]} 17. Rxd1 {[%clk
00:28:55]} {[%emt 00:00:05]} Rab8 {[%clk 00:34:52]} {[%emt 00:05:07]} 18. b3
{[%clk 00:26:31]} {[%emt 00:02:35]} Rfd8 {[%clk 00:33:39]} {[%emt 00:01:22]} 19.
Bb2 {[%clk 00:24:50]} {[%emt 00:01:52]} f6 {[%clk 00:33:29]} {[%emt 00:00:20]}
20. Be2 {[%clk 00:23:20]} {[%emt 00:01:40]} e4 {[%clk 00:29:52]} {[%emt
00:03:47]} 21. Bd4 {[%clk 00:21:45]} {[%emt 00:01:45]} c5 {[%clk 00:26:08]}
{[%emt 00:03:54]} 22. Be3 {[%clk 00:21:45]} {[%emt 00:00:09]} g5 {[%clk
00:25:28]} {[%emt 00:00:51]} 23. g4 {[%clk 00:20:18]} {[%emt 00:01:37]} Kf7
{[%clk 00:23:42]} {[%emt 00:01:55]} 24. Kg2 {[%clk 00:19:38]} {[%emt 00:00:50]}
f5 {[%clk 00:22:28]} {[%emt 00:01:24]} 25. gxf5 {[%clk 00:19:29]} {[%emt
00:00:20]} Bxf5 {[%clk 00:22:37]} {[%emt 00:00:02]} 26. Rxd8 {[%clk 00:16:59]}
{[%emt 00:02:39]} Rxd8 {[%clk 00:22:34]} {[%emt 00:00:13]} 27. Rd1 {[%clk
00:16:58]} {[%emt 00:00:11]} Rxd1 {[%clk 00:20:32]} {[%emt 00:02:12]} 28. Bxd1
{[%clk 00:17:06]} {[%emt 00:00:02]} Ke6 {[%clk 00:19:54]} {[%emt 00:00:48]} 29.
Be2 {[%clk 00:13:07]} {[%emt 00:04:08]} Kd6 {[%clk 00:17:34]} {[%emt 00:02:30]}
30. a3 {[%clk 00:12:51]} {[%emt 00:00:28]} Kc6 {[%clk 00:16:21]} {[%emt
00:01:22]} 31. Bc4 {[%clk 00:12:17]} {[%emt 00:00:43]} Bd6 {[%clk 00:15:14]}
{[%emt 00:01:17]} 32. Bf7 {[%clk 00:10:13]} {[%emt 00:02:15]} Bf4 {[%clk
00:11:40]} {[%emt 00:03:43]} 33. Be8+ {[%clk 00:08:49]} {[%emt 00:01:35]} Kb6
{[%clk 00:07:11]} {[%emt 00:04:38]} 34. Bf7 {[%clk 00:08:00]} {[%emt 00:01:00]}
Kc6 {[%clk 00:07:16]} {[%emt 00:00:04]} 35. Be8+ {[%clk 00:07:48]} {[%emt
00:00:22]} Kb6 {[%clk 00:07:01]} {[%emt 00:00:26]} 36. Bf7 {[%clk 00:06:07]}
{[%emt 00:01:51]} 1/2-1/2

[Event "FIDE U16 Olympiad_boards_1-80"]
[Site "Eindhoven, Netherlands"]
[Date "2023.08.14"]
[Round "2.12"]
[White "Verheij, Dana"]
[Black "Ter-Avetisjana, Agnesa Stepania"]
[Result "1-0"]
[TimeControl "2700+10"]
[WhiteElo "1829"]
[BlackElo "1889"]

1. e4 {[%clk 00:45:17]} {[%emt 00:00:02]} c6 {[%clk 00:45:19]} {[%emt
00:00:02]} 2. d4 {[%clk 00:45:26]} {[%emt 00:00:01]} d5 {[%clk 00:45:29]} 3.
exd5 {[%clk 00:45:34]} {[%emt 00:00:02]} cxd5 {[%clk 00:45:37]} {[%emt
00:00:01]} 4. Nf3 {[%clk 00:45:42]} {[%emt 00:00:02]} Nc6 {[%clk 00:45:39]}
{[%emt 00:00:07]} 5. Ne5 {[%clk 00:45:48]} {[%emt 00:00:04]} e6 {[%clk
00:45:41]} {[%emt 00:00:09]} 6. Bb5 {[%clk 00:45:56]} {[%emt 00:00:02]} Bd7
{[%clk 00:45:51]} 7. Nxd7 {[%clk 00:46:05]} {[%emt 00:00:01]} Qxd7 {[%clk
00:46:00]} {[%emt 00:00:01]} 8. c3 {[%clk 00:46:11]} {[%emt 00:00:04]} Bd6
{[%clk 00:46:08]} {[%emt 00:00:01]} 9. O-O {[%clk 00:46:04]} {[%emt 00:00:17]}
Nf6 {[%clk 00:46:04]} {[%emt 00:00:15]} 10. Nd2 {[%clk 00:46:09]} {[%emt
00:00:04]} O-O {[%clk 00:45:59]} {[%emt 00:00:15]} 11. Re1 {[%clk 00:46:15]}
{[%emt 00:00:04]} Qc7 {[%clk 00:46:08]} {[%emt 00:00:02]} 12. Nf1 {[%clk
00:46:16]} {[%emt 00:00:08]} Rae8 {[%clk 00:40:22]} {[%emt 00:05:56]} 13. Bd3
{[%clk 00:46:17]} {[%emt 00:00:09]} e5 {[%clk 00:33:43]} {[%emt 00:06:49]} 14.
Bg5 {[%clk 00:46:00]} {[%emt 00:00:28]} e4 {[%clk 00:29:41]} {[%emt 00:04:12]}
15. Bxf6 {[%clk 00:44:03]} {[%emt 00:02:06]} gxf6 {[%clk 00:28:27]} {[%emt
00:01:24]} 16. Bc2 {[%clk 00:38:48]} {[%emt 00:05:25]} Kh8 {[%clk 00:17:45]}
{[%emt 00:10:52]} 17. Bb3 {[%clk 00:31:51]} {[%emt 00:07:08]} Ne7 {[%clk
00:16:49]} {[%emt 00:01:05]} 18. Qh5 {[%clk 00:31:08]} {[%emt 00:00:53]} Qd7
{[%clk 00:11:31]} {[%emt 00:05:28]} 19. Re3 {[%clk 00:26:56]} {[%emt 00:04:22]}
Rg8 {[%clk 00:10:50]} {[%emt 00:00:51]} 20. Qxf7 {[%clk 00:25:20]} {[%emt
00:01:46]} Ref8 {[%clk 00:10:58]} {[%emt 00:00:01]} 21. Qh5 {[%clk 00:25:26]}
{[%emt 00:00:04]} Rg5 {[%clk 00:11:06]} {[%emt 00:00:02]} 22. Qd1 {[%clk
00:20:07]} {[%emt 00:05:29]} Nf5 {[%clk 00:09:04]} {[%emt 00:02:13]} 23. Rh3
{[%clk 00:17:09]} {[%emt 00:03:08]} Nxd4 {[%clk 00:05:29]} {[%emt 00:03:45]} 24.
Kh1 {[%clk 00:06:35]} {[%emt 00:10:44]} Nxb3 {[%clk 00:03:53]} {[%emt
00:01:45]} 25. axb3 {[%clk 00:06:42]} {[%emt 00:00:04]} Rfg8 {[%clk 00:02:55]}
{[%emt 00:01:08]} 26. Ng3 {[%clk 00:06:35]} {[%emt 00:00:17]} Bc5 {[%clk
00:02:33]} {[%emt 00:00:32]} 27. Qd2 {[%clk 00:05:03]} {[%emt 00:01:41]} Qe6
{[%clk 00:01:17]} {[%emt 00:01:27]} 28. Re1 {[%clk 00:04:03]} {[%emt 00:01:10]}
f5 {[%clk 00:00:59]} {[%emt 00:00:29]} 29. Rh5 {[%clk 00:03:00]} {[%emt
00:01:12]} h6 {[%clk 00:00:19]} {[%emt 00:00:50]} 30. h4 {[%clk 00:02:09]}
{[%emt 00:01:01]} Rxh5 {[%clk 00:00:22]} {[%emt 00:00:07]} 31. Nxh5 {[%clk
00:02:17]} {[%emt 00:00:02]} Rg4 {[%clk 00:00:17]} {[%emt 00:00:15]} 32. g3
{[%clk 00:01:59]} {[%emt 00:00:28]} d4 {[%clk 00:00:13]} {[%emt 00:00:14]} 33.
cxd4 {[%clk 00:01:39]} {[%emt 00:00:30]} Bd6 {[%clk 00:00:23]} 34. d5 {[%clk
00:01:17]} {[%emt 00:00:31]} Qe5 {[%clk 00:00:13]} {[%emt 00:00:21]} 35. Qxh6+
{[%clk 00:01:14]} {[%emt 00:00:13]} Kg8 {[%clk 00:00:16]} {[%emt 00:00:08]} 36.
Nf6+ {[%clk 00:01:19]} {[%emt 00:00:04]} Kf7 {[%clk 00:00:25]} {[%emt
00:00:01]} 37. Nxg4 {[%clk 00:01:27]} {[%emt 00:00:02]} fxg4 {[%clk 00:00:35]}
38. Qh7+ {[%clk 00:01:28]} {[%emt 00:00:09]} Kf6 {[%clk 00:00:18]} {[%emt
00:00:27]} 39. Qxe4 {[%clk 00:01:29]} {[%emt 00:00:09]} Qxe4+ {[%clk 00:00:15]}
{[%emt 00:00:13]} 40. Rxe4 {[%clk 00:01:38]} {[%emt 00:00:01]} Kf5 {[%clk
00:00:24]} {[%emt 00:00:02]} 41. Re1 {[%clk 00:01:36]} {[%emt 00:00:11]} Bc5
{[%clk 00:00:31]} {[%emt 00:00:03]} 42. Kg2 {[%clk 00:01:39]} {[%emt 00:00:08]}
b6 {[%clk 00:00:40]} 43. Rd1 {[%clk 00:01:44]} {[%emt 00:00:05]} Ke5 {[%clk
00:00:46]} {[%emt 00:00:03]} 44. h5 {[%clk 00:01:47]} {[%emt 00:00:06]} Bf8
{[%clk 00:00:55]} {[%emt 00:00:02]} 45. d6 {[%clk 00:01:50]} {[%emt 00:00:07]}
Bxd6 {[%clk 00:01:00]} {[%emt 00:00:06]} 46. Rxd6 {[%clk 00:01:53]} {[%emt
00:00:06]} Kd5 {[%emt 00:00:06]} 1-0